bitfinex/quotes_SOLUSD_20250315
["timestamp","ask_amount","ask_price","bid_price","bid_amount"]
[1742050637214,0.31432314,134.88,134.86,1.638]
[1742050637595,0.03,134.88,134.86,9.053]
[1742050639311,0.03,134.88,134.86,1.638]
[1742050639900,0.03,134.88,134.86,9.053]
[1742050641915,0.03,134.88,134.86,1.638]
[1742050642613,0.03,134.88,134.86,9.053]
[1742050644418,0.03,134.88,134.86,89.7529]
[1742050645923,0.03,134.9,134.88,7.4139]
[1742050646123,0.03,134.9,134.88,88.1138]
[1742050647621,0.03,134.9,134.88,80.6999]
[1742050649120,0.03,134.9,134.88,88.1138]
[1742050657325,0.03,134.9,134.88,88.1768]
[1742050662636,0.03,134.9,134.88,80.7629]
[1742050663128,0.03,134.9,134.88,0.063]
[1742050663720,20.28432314,134.89,134.88,0.063]
[1742050667516,0.03,134.9,134.88,0.063]
[1742050673834,20.0,134.89,134.88,0.063]
[1742050675336,20.28432314,134.89,134.88,0.063]
[1742050676137,20.0,134.89,134.88,0.063]
[1742050680326,0.03,134.9,134.88,0.063]
[1742050685654,20.28432314,134.89,134.88,0.063]
[1742050686961,27.69772314,134.89,134.88,0.063]
[1742050692254,20.28432314,134.89,134.88,0.063]
[1742050692433,20.0,134.89,134.88,0.063]
[1742050692937,0.03,134.89,134.88,0.063]
[1742050693549,0.03,134.89,134.88,80.7629]
[1742050696160,20.03,134.89,134.88,80.7629]
[1742050696855,46.09304886,134.89,134.88,80.7629]
[1742050697257,46.09304886,134.89,134.88,0.063]
[1742050697638,57.54740054,134.89,134.88,0.063]
[1742050699551,57.54740054,134.89,134.86,0.063]
[1742050699859,7.69832314,134.88,134.86,0.063]
[1742050702061,25.06964886,134.87,134.86,0.063]
[1742050703154,32.48414886,134.87,134.86,0.063]
[1742050705445,6.42,134.87,134.86,0.063]
[1742050708359,13.8345,134.87,134.86,0.063]
[1742050709154,14.11882314,134.87,134.86,0.063]
[1742050712254,32.768472,134.87,134.86,0.063]
[1742050715681,18.933972,134.86,134.85,0.063]
[1742050716479,26.348972,134.86,134.85,0.063]
[1742050722289,7.69932314,134.86,134.85,0.063]
[1742050722469,26.348972,134.86,134.85,0.063]
[1742050725988,7.69932314,134.86,134.85,0.063]
[1742050727684,26.348972,134.86,134.85,0.063]
[1742050727988,25.353972,134.86,134.85,0.063]
[1742050728886,32.768972,134.86,134.85,0.063]
[1742050729089,25.353972,134.86,134.85,0.063]
[1742050729585,20.0,134.86,134.85,0.063]
[1742050731399,6.56216157,134.88,134.85,0.063]
[1742050731771,6.56216157,134.88,134.85,80.7629]
[1742050732271,0.14216157,134.88,134.85,88.1785]
[1742050736895,0.03,134.89,134.87,7.4145]
[1742050738007,0.03,134.9,134.89,80.6699]
[1742050738172,0.03,134.9,134.89,87.0937]
[1742050739179,0.03,134.9,134.89,94.5071]
[1742050741193,0.03,134.9,134.89,87.0937]
[1742050741795,0.03,134.9,134.89,94.5071]
[1742050742998,0.03,134.9,134.89,87.0937]
[1742050744300,0.03,134.9,134.89,80.6699]
[1742050747104,0.03,134.9,134.85,143.5784]
[1742050747105,0.28432314,134.87,134.85,80.7329]
[1742050747301,7.69932314,134.86,134.85,80.7329]
[1742050749703,0.28432314,134.86,134.85,80.7329]
[1742050750590,0.28432314,134.86,134.85,54.91072913]
[1742050752515,0.28432314,134.86,134.85,54.97372913]
[1742050753015,0.28432314,134.86,134.85,0.063]
[1742050759917,7.69932314,134.86,134.85,0.063]
[1742050762501,26.348972,134.86,134.85,0.063]
[1742050762937,32.768972,134.86,134.85,0.063]
[1742050775329,36.55122825,134.86,134.85,0.063]
[1742050780732,18.933972,134.85,134.81,80.7]
[1742050781436,7.4161,134.84,134.81,80.7]
[1742050781642,0.28432314,134.83,134.81,80.7]
[1742050784830,7.70102314,134.83,134.81,80.7]
[1742050785016,18.64964886,134.82,134.81,80.7]
[1742050786322,25.06964886,134.82,134.81,80.7]
[1742050788549,32.771172,134.82,134.81,80.7]
[1742050789443,25.353972,134.82,134.81,80.7]
[1742050799554,25.353972,134.82,134.81,80.763]
[1742050800233,11.58187698,134.84,134.82,1.6182]
[1742050800555,11.58187698,134.84,134.82,82.3182]
[1742050801550,0.03,134.85,134.83,7.4167]
[1742050801754,0.03,134.85,134.83,88.1167]
[1742050802629,0.03,134.85,134.83,80.7]
[1742050802830,18.67964886,134.85,134.83,80.7]
[1742050803053,0.28432314,134.84,134.83,80.7]
[1742050804031,38.933972,134.84,134.83,80.7]
[1742050807463,0.03,134.85,134.83,88.1167]
[1742050807756,0.03,134.85,134.83,89.7334]
[1742050808340,11.58187698,134.86,134.85,80.67]
[1742050808549,0.03,134.87,134.86,1.6167]
[1742050808740,0.03,134.87,134.86,137.7167]
[1742050809954,0.03,134.87,134.86,145.1317]
[1742050810337,0.03,134.9,134.86,151.2969]
[1742050810655,0.03,134.9,134.86,231.9669]
[1742050811559,0.03,134.9,134.86,250.5046]
[1742050814655,13.8301,134.95,134.9,80.64]
[1742050814964,18.933972,134.94,134.9,80.64]
[1742050815757,7.4112,134.93,134.9,80.64]
[1742050816137,38.933972,134.91,134.9,80.64]
[1742050817949,46.346272,134.91,134.9,80.64]
[1742050818756,20.0,134.91,134.9,80.64]
[1742050819353,18.79181043,134.93,134.9,80.64]
[1742050819354,20.0,134.93,134.9,80.64]
[1742050819655,6.4,134.94,134.9,88.0528]
[1742050820252,25.19181043,134.95,134.9,88.0528]
[1742050821252,25.19181043,134.95,134.9,80.64]
[1742050821253,0.14216157,134.94,134.9,80.64]
[1742050822644,7.55306157,134.94,134.9,80.64]
[1742050822846,32.60211043,134.95,134.9,88.0527]
[1742050823046,6.4,134.95,134.9,88.0527]
[1742050823248,6.4,134.95,134.9,224.1527]
[1742050823655,6.4,134.95,134.9,216.74]
[1742050823855,25.04964886,134.95,134.9,216.74]
[1742050824263,25.04964886,134.95,134.9,224.1528]
[1742050824662,32.46014886,134.95,134.9,224.1528]
[1742050826361,32.46014886,134.95,134.9,88.0528]
[1742050829374,25.04964886,134.95,134.91,1.6655]
[1742050831077,25.04964886,134.95,134.91,9.0778]
[1742050832173,25.04964886,134.95,134.91,89.7178]
[1742050832773,6.4,134.95,134.91,89.7178]
[1742050834078,6.4,134.96,134.91,96.0445]
[1742050834373,6.68432314,134.97,134.91,96.0445]
[1742050834573,6.68432314,134.97,134.91,250.6753]
[1742050834960,0.03,134.95,134.91,250.6753]
[1742050835771,0.03,134.95,134.91,232.1445]
[1742050838681,20.0,134.94,134.91,224.7322]
[1742050838872,20.0,134.94,134.91,82.3055]
[1742050841399,20.0,134.94,134.91,89.7178]
[1742050844091,20.0,134.94,134.91,225.8178]
[1742050845702,19.5,134.94,134.91,225.8178]
[1742050846103,19.5,134.94,134.91,218.4055]
[1742050846406,26.9107,134.94,134.91,218.4055]
[1742050847685,26.345372,134.93,134.91,80.64]
[1742050847883,25.333972,134.92,134.91,80.64]
[1742050848186,6.4,134.92,134.91,80.64]
[1742050848492,25.333972,134.92,134.91,80.64]
[1742050849692,32.745672,134.92,134.91,80.64]
[1742050858106,6.4,134.92,134.91,80.64]
[1742050858301,6.4,134.92,134.91,80.703]
[1742050858994,7.4113,134.93,134.91,80.703]
[1742050859193,13.8113,134.93,134.91,80.703]
[1742050860109,6.4,134.93,134.91,80.703]
[1742050861302,13.8116,134.93,134.91,80.703]
[1742050862799,6.4,134.93,134.91,80.703]
[1742050863021,38.52277698,134.94,134.91,80.703]
[1742050863022,31.11187698,134.94,134.91,80.703]
[1742050864030,31.11187698,134.94,134.91,88.1153]
[1742050864338,11.61187698,134.94,134.92,1.6043]
[1742050864612,46.32750793,134.96,134.95,45.83436906]
[1742050865001,6.4,134.97,134.95,45.83436906]
[1742050866400,6.4,134.97,134.95,53.24446906]
[1742050866605,29.62346432,134.98,134.95,45.83436906]
[1742050866909,29.62346432,134.98,134.95,53.24436906]
[1742050867102,29.62346432,134.98,134.95,45.83436906]
[1742050867722,6.4,134.98,134.95,45.83436906]
[1742050868201,13.8085,134.98,134.95,45.83436906]
[1742050868408,6.4,134.98,134.95,45.83436906]
[1742050868606,6.4,134.98,134.95,189.34426906]
[1742050869499,0.03,134.99,134.95,189.34426906]
[1742050871509,0.03,134.99,134.95,181.93436906]
[1742050872303,0.03,134.98,134.95,181.93436906]
[1742050872896,0.03,134.98,134.96,1.563]
[1742050873302,0.03,134.99,134.98,45.80436906]
[1742050875716,20.03,134.99,134.98,45.80436906]
[1742050877397,0.03,134.99,134.98,45.80436906]
[1742050879721,6.43,135.0,134.99,45.77436906]
[1742050881227,20.03,135.0,134.99,45.77436906]
[1742050883225,0.03,135.0,134.99,189.28226906]
[1742050884537,0.03,135.0,134.99,190.83206906]
[1742050888015,0.03,135.04,135.03,45.68436906]
[1742050890523,18.963972,135.04,135.03,45.68436906]
[1742050891740,26.369172,135.04,135.03,18.64536217]
[1742050892441,20.0,135.01,134.99,156.29516217]
[1742050892620,20.0,135.01,134.99,20.19516217]
[1742050893221,18.963972,135.04,134.99,20.19516217]
[1742050893540,18.963972,135.04,134.99,163.70306217]
[1742050893925,25.363972,135.04,134.99,163.70306217]
[1742050894539,32.769272,135.04,134.99,163.70306217]
[1742050896424,32.769272,135.04,134.99,163.76606217]
[1742050897143,32.769272,135.04,134.99,156.35816217]
[1742050899627,32.769272,135.04,134.99,163.76596217]
[1742050903144,6.43,135.04,134.99,163.76596217]
[1742050904049,0.03,135.04,134.99,163.76596217]
[1742050904758,0.03,135.04,134.99,182.28576217]
[1742050905042,0.03,135.05,135.04,18.61536217]
[1742050905250,0.03,135.05,135.04,156.22296217]
[1742050907433,0.03,135.05,135.04,163.62816217]
[1742050907751,0.03,135.05,135.04,156.22296217]
[1742050909451,0.03,135.05,135.04,154.71536217]
[1742050913075,18.963972,135.05,135.04,154.71536217]
[1742050914236,20.03,135.05,135.04,154.71536217]
[1742050915353,0.03,135.05,135.04,162.12056217]
[1742050917863,0.03,135.05,135.04,154.71536217]
[1742050920139,0.03,135.07,135.06,18.58536217]
[1742050927562,20.03,135.07,135.06,18.58536217]
[1742050927953,6.43,135.09,135.08,18.55536217]
[1742050928547,20.03,135.09,135.08,18.55536217]
[1742050930159,27.4324,135.09,135.08,18.55536217]
[1742050930544,46.366372,135.09,135.08,18.55536217]
[1742050934171,46.366372,135.09,135.04,17.5453135]
[1742050934172,20.14216157,135.05,135.04,17.5453135]
[1742050934382,20.0,135.02,135.01,17.68381805]
[1742050935844,38.933972,135.02,135.01,17.68381805]
[1742050936250,46.340272,135.02,135.01,17.68381805]
[1742050939690,64.855972,135.02,134.99,80.763]
[1742050940481,18.933972,135.01,134.99,80.763]
[1742050940670,6.4,135.0,134.99,80.763]
[1742050941660,13.8074,135.0,134.99,80.763]
[1742050942084,32.741372,135.0,134.99,0.063]
[1742050945283,25.333972,135.0,134.99,0.063]
[1742050946576,25.333972,135.0,134.99,80.763]
[1742050947263,18.933972,135.0,134.99,80.763]
[1742050947462,25.333972,135.0,134.99,80.763]
[1742050947788,32.741372,135.0,134.99,80.763]
[1742050951184,6.4,135.0,134.99,80.763]
[1742050951986,20.0,135.01,134.99,80.763]
[1742050952294,6.54216157,135.03,134.99,80.763]
[1742050952678,20.0,135.0,134.99,80.763]
[1742050952891,18.64964886,135.05,134.99,88.1709]
[1742050953190,46.32750793,135.07,134.99,117.46696217]
[1742050953487,6.4,135.06,135.01,1.6476]
[1742050953696,6.4,135.06,135.01,93.12386217]
[1742050954288,6.4,135.06,135.02,7.4063]
[1742050954683,0.03,135.09,135.02,117.39826217]
[1742050955181,20.0,135.08,135.02,117.39826217]
[1742050956299,0.03,135.09,135.02,117.39826217]
[1742050956588,0.03,135.09,135.04,6.2471]
[1742050956991,0.03,135.06,135.04,6.2471]
[1742050957169,20.03,135.09,135.08,80.67]
[1742050957873,0.03,135.09,135.08,88.073]
[1742050958073,0.03,135.09,135.08,98.84926217]
[1742050958289,0.03,135.09,135.08,100.45536217]
[1742050965291,0.03,135.12,135.11,80.64]
[1742050966179,0.03,135.12,135.11,88.0413]
[1742050966678,0.03,135.12,135.11,98.81756217]
[1742050968610,0.03,135.12,135.11,100.42366217]
[1742050968809,0.03,135.13,135.11,100.42366217]
[1742050968987,0.03,135.13,135.12,1.10951617]
[1742050969187,0.03,135.13,135.11,101.53322997]
[1742050969384,0.03,135.13,135.11,100.42366217]
[1742050971201,0.03,135.19,135.16,44.69460602]
[1742050971591,7.4278,135.18,135.16,44.69460602]
[1742050972313,0.03,135.18,135.16,44.69460602]
[1742050973915,0.03,135.18,135.16,52.09320602]
[1742050974223,0.03,135.18,135.16,62.86946819]
[1742050975818,0.03,135.18,135.16,64.49696819]
[1742050976204,7.3955,135.22,135.2,24.57460602]
[1742050976412,13.7755,135.22,135.2,24.57460602]
[1742050977299,7.3955,135.22,135.2,24.57460602]
[1742050977501,6.38,135.21,135.2,24.57460602]
[1742050977701,18.933972,135.23,135.2,24.57460602]
[1742050977901,6.38,135.22,135.2,24.57460602]
[1742050978806,13.7754,135.22,135.2,24.57460602]
[1742050981521,6.38,135.22,135.2,24.57460602]
[1742050982017,13.7754,135.22,135.2,24.57460602]
[1742050984239,18.933972,135.21,135.2,24.57460602]
[1742050984940,13.7754,135.22,135.2,24.57460602]
[1742050985121,6.38,135.22,135.2,24.57460602]
[1742050986224,6.38,135.22,135.2,31.97100602]
[1742050986716,20.0,135.21,135.2,31.97100602]
[1742050986922,20.0,135.21,135.2,24.57460602]
[1742050987503,6.38,135.24,135.2,24.57460602]
[1742050987709,6.38,135.24,135.2,42.74726819]
[1742050988131,13.7742,135.24,135.2,42.74726819]
[1742050988422,13.7742,135.24,135.2,35.35086819]
[1742050988828,7.3942,135.24,135.2,35.35086819]
[1742050990128,20.0,135.23,135.2,42.74726819]
[1742050990626,0.03,135.26,135.23,24.57460602]
[1742050990924,20.03,135.26,135.23,35.35086819]
[1742050991429,0.03,135.26,135.23,35.35086819]
[1742050992722,0.03,135.26,135.23,42.74556819]
[1742050992924,0.03,135.24,135.23,42.74556819]
[1742050993224,0.03,135.24,135.23,44.29646819]
[1742050994639,0.03,135.26,135.23,45.40516992]
[1742050994931,20.0,135.3,135.29,24.54460602]
[1742050995152,20.0,135.3,135.29,35.32086819]
[1742050995327,7.3898,135.33,135.29,35.32086819]
[1742050995524,20.0,135.3,135.29,35.32086819]
[1742051002834,27.3909,135.3,135.29,35.32086819]
[1742051003036,20.0,135.3,135.29,35.32086819]
[1742051003229,26.322872,135.34,135.3,4.54460602]
[1742051003434,6.44,135.33,135.3,15.32086819]
[1742051006140,13.8294,135.33,135.3,15.32086819]
[1742051006638,6.44,135.33,135.3,15.32086819]
[1742051007241,13.839,135.34,135.3,15.32086819]
[1742051008935,13.839,135.34,135.3,22.71176819]
[1742051009135,13.839,135.34,135.3,15.32086819]
[1742051009136,7.419,135.34,135.3,15.32086819]
[1742051013727,0.03,135.34,135.3,22.71166819]
[1742051016632,0.03,135.34,135.3,15.32086819]
[1742051024136,0.03,135.34,135.3,22.71166819]
[1742051025759,0.03,135.34,135.3,15.32086819]
[1742051028355,0.03,135.34,135.3,15.38386819]
[1742051028541,0.03,135.34,135.3,22.77466819]
[1742051028742,0.03,135.34,135.3,15.38386819]
[1742051031067,18.67964886,135.34,135.3,15.38386819]
[1742051032564,7.3893,135.33,135.3,15.38386819]
[1742051037949,7.3893,135.33,135.3,4.60760602]
[1742051041376,7.3893,135.33,135.3,4.60760602]
[1742051041746,20.0,135.31,135.3,4.60760602]
[1742051041952,6.66432314,135.31,135.3,4.60760602]
[1742051042768,25.313972,135.31,135.3,4.60760602]
[1742051043066,25.313972,135.31,135.3,6.02e-06]
[1742051043476,26.38,135.31,135.3,6.02e-06]
[1742051044460,20.0,135.31,135.3,6.02e-06]
[1742051044662,11.44665606,135.33,135.3,6.02e-06]
[1742051045066,6.43,135.34,135.3,6.02e-06]
[1742051045254,6.43,135.34,135.3,10.77626819]
[1742051046376,6.43,135.34,135.3,18.16686819]
[1742051046961,0.03,135.34,135.3,18.16686819]
[1742051049777,20.0,135.33,135.3,18.16686819]
[1742051052657,20.0,135.33,135.3,10.77626819]
[1742051053954,20.0,135.33,135.3,18.16716819]
[1742051055179,0.03,135.34,135.33,60.7]
[1742051062779,20.03,135.34,135.33,60.7]
[1742051063215,0.03,135.34,135.33,60.7]
[1742051063383,0.03,135.36,135.35,60.67]
[1742051064373,0.03,135.36,135.35,68.0582]
[1742051064974,0.03,135.36,135.35,60.67]
[1742051072000,0.31432314,135.36,135.35,60.67]
[1742051074298,26.351672,135.36,135.35,60.67]
[1742051077191,26.351672,135.36,135.35,34.93743534]
[1742051082488,20.03,135.36,135.35,34.93743534]
[1742051082879,26.45,135.36,135.35,34.93743534]
[1742051083086,33.8377,135.36,135.35,34.93743534]
[1742051083291,27.4177,135.36,135.35,34.93743534]
[1742051083496,33.8377,135.36,135.35,34.93743534]
[1742051084008,34.12202314,135.36,135.35,34.93743534]
[1742051084602,52.771672,135.36,135.35,34.93743534]
[1742051084798,52.771672,135.36,135.33,0.063]
[1742051084799,18.933972,135.35,135.33,0.063]
[1742051086001,26.322672,135.34,135.33,0.063]
[1742051086320,7.67302314,135.34,135.33,0.063]
[1742051087907,7.53056157,135.35,135.33,35.00043534]
[1742051092204,33.97996157,135.36,135.33,35.00043534]
[1742051093105,18.933972,135.35,135.33,35.00043534]
[1742051093297,7.67302314,135.34,135.33,35.00043534]
[1742051101213,26.322672,135.34,135.33,35.00043534]
[1742051102623,7.67302314,135.34,135.33,35.00043534]
[1742051103925,0.28432314,135.34,135.33,35.00043534]
[1742051105221,7.67302314,135.34,135.33,35.00043534]
[1742051106126,0.28432314,135.34,135.33,35.00043534]
[1742051106818,13.93046157,135.35,135.33,35.00043534]
[1742051107015,13.93036157,135.35,135.33,35.00043534]
[1742051109031,6.54216157,135.35,135.33,35.00043534]
[1742051109744,13.93036157,135.35,135.33,35.00043534]
[1742051109910,13.95036157,135.35,135.33,35.00043534]
[1742051113034,13.98036157,135.35,135.33,35.00043534]
[1742051114321,6.59216157,135.35,135.33,35.00043534]
[1742051114830,13.98046157,135.35,135.33,35.00043534]
[1742051116344,7.67302314,135.34,135.33,35.00043534]
[1742051116747,26.322672,135.34,135.33,35.00043534]
[1742051118638,13.98056157,135.35,135.33,35.00043534]
[1742051121923,6.45,135.35,135.33,35.00043534]
[1742051122328,6.45,135.35,135.33,42.38973534]
[1742051122536,0.03,135.35,135.33,42.38973534]
[1742051123342,0.03,135.35,135.34,1.6293]
[1742051123522,0.03,135.36,135.35,34.90743534]
[1742051125732,0.03,135.36,135.35,42.29563534]
[1742051127647,0.03,135.36,135.35,53.07189751]
[1742051128032,0.03,135.37,135.35,53.07189751]
[1742051130868,2.5330954,135.43,135.41,34.84743534]
[1742051131066,2.5330954,135.43,135.41,45.62369751]
[1742051131232,11.44665606,135.45,135.42,1.6293]
[1742051131432,5.606e-05,135.45,135.43,18.79181043]
[1742051131637,5.606e-05,135.45,135.44,25.08831043]
[1742051132342,0.03,135.48,135.46,1.6293]
[1742051132542,0.03,135.48,135.46,172.57673534]
[1742051133656,0.03,135.48,135.46,170.94743534]
[1742051134335,0.03,135.48,135.46,34.84743534]
[1742051135329,0.03,135.48,135.46,170.94743534]
[1742051136536,13.90126157,135.52,135.49,34.78743534]
[1742051136958,7.52126157,135.52,135.49,34.78743534]
[1742051137159,13.90126157,135.52,135.49,34.78743534]
[1742051137453,6.38,135.52,135.49,34.78743534]
[1742051137847,6.38,135.52,135.49,170.88743534]
[1742051138060,7.3774,135.55,135.49,170.88743534]
[1742051139239,13.7569,135.56,135.49,170.88743534]
[1742051139438,6.38,135.56,135.49,170.88743534]
[1742051139848,13.7569,135.56,135.49,170.88743534]
[1742051140740,13.7569,135.56,135.49,178.26793534]
[1742051140942,13.7569,135.56,135.49,170.88743534]
[1742051141764,18.933972,135.55,135.49,170.88743534]
[1742051141942,20.0,135.52,135.49,34.78743534]
[1742051142276,6.38,135.51,135.49,170.88743534]
[1742051143348,13.7596,135.51,135.49,170.88743534]
[1742051146272,6.38,135.51,135.49,170.88743534]
[1742051146670,13.7596,135.51,135.49,170.88743534]
[1742051147368,6.38,135.51,135.49,170.88743534]
[1742051147545,27.66342314,135.52,135.49,170.88743534]
[1742051147749,6.38,135.53,135.49,170.88743534]
[1742051148052,18.64964886,135.55,135.49,170.88743534]
[1742051148053,0.14216157,135.57,135.54,34.78743534]
[1742051148238,20.0,135.55,135.54,34.78743534]
[1742051148444,0.28432314,135.57,135.54,34.78743534]
[1742051148861,20.0,135.55,135.54,34.78743534]
[1742051149166,0.28432314,135.57,135.54,34.78743534]
[1742051149359,7.66072314,135.57,135.54,34.78743534]
[1742051149553,20.0,135.55,135.54,34.78743534]
[1742051151460,6.4,135.58,135.54,34.78743534]
[1742051151647,20.0,135.56,135.54,42.16513534]
[1742051152042,20.0,135.56,135.54,34.78743534]
[1742051152864,20.0,135.56,135.54,42.16523534]
[1742051153562,6.4,135.59,135.58,14.78743534]
[1742051153774,14.05942314,135.59,135.58,14.78743534]
[1742051154182,32.709072,135.59,135.58,14.78743534]
[1742051154472,0.28432314,135.58,135.54,14.78743534]
[1742051155240,7.3762,135.57,135.54,14.78743534]
[1742051155667,20.0,135.55,135.54,14.78743534]
[1742051156257,6.4,135.59,135.54,158.26523534]
[1742051156566,20.0,135.57,135.54,158.26523534]
[1742051158074,6.46,135.61,135.54,158.26523534]
[1742051158255,13.8341,135.61,135.54,158.26523534]
[1742051158568,0.28432314,135.6,135.54,150.88743534]
[1742051158766,20.0,135.58,135.54,150.88743534]
[1742051158966,20.0,135.57,135.54,14.78743534]
[1742051159351,7.3768,135.56,135.54,14.78743534]
[1742051159554,7.3768,135.56,135.54,150.88743534]
[1742051161645,6.72432314,135.55,135.54,150.88743534]
[1742051162870,6.44,135.55,135.54,150.88743534]
[1742051163873,13.8173,135.55,135.54,150.88743534]
[1742051164064,14.10162314,135.55,135.54,150.88743534]
[1742051164373,32.751272,135.55,135.54,3.534e-05]
[1742051165255,20.28432314,135.51,135.49,0.06303534]
[1742051165474,6.72432314,135.5,135.49,0.06303534]
[1742051165853,14.10432314,135.5,135.49,0.06303534]
[1742051166053,6.44,135.5,135.49,0.06303534]
[1742051166373,20.0,135.51,135.49,0.06303534]
[1742051166582,6.44,135.52,135.49,0.06303534]
[1742051168263,20.0,135.5,135.49,0.06303534]
[1742051168770,6.44,135.52,135.49,0.06303534]
[1742051170856,13.8191,135.52,135.49,0.06303534]
[1742051172184,6.44,135.52,135.49,0.06303534]
[1742051172784,13.819,135.52,135.49,0.06303534]
[1742051173571,6.44,135.52,135.49,0.06303534]
[1742051175489,13.819,135.52,135.49,0.06303534]
[1742051180592,6.44,135.52,135.49,0.06303534]
[1742051181786,0.03,135.56,135.52,3.534e-05]
[1742051181991,0.03,135.56,135.52,136.10003534]
[1742051182395,0.03,135.56,135.54,6.5844]
[1742051182689,46.32750793,135.64,135.55,7.3773]
[1742051182872,46.32750793,135.64,135.55,161.92063534]
[1742051183273,0.17216157,135.65,135.55,161.92063534]
[1742051183687,6.59216157,135.65,135.55,161.92063534]
[1742051184186,6.45,135.65,135.56,2.72148275]
[1742051184785,6.45,135.65,135.57,7.3762]
[1742051185374,0.03,135.65,135.57,7.3762]
[1742051185575,7.54416157,135.65,135.57,143.47623534]
[1742051185976,20.0,135.64,135.57,143.47623534]
[1742051186171,0.03,135.65,135.58,18.64964886]
[1742051186373,0.03,135.65,135.59,6.5844]
[1742051186886,0.03,135.65,135.6,7.3746]
[1742051187485,0.03,135.65,135.6,143.47463534]
[1742051188092,0.02996466,135.65,135.61,2.73851501]
[1742051188283,0.02996466,135.65,135.61,138.83851501]
[1742051189003,0.02996466,135.65,135.62,7.3735]
[1742051189577,0.02996466,135.65,135.62,136.1]
[1742051190506,0.02996466,135.65,135.62,216.8]
[1742051190891,0.02996466,135.65,135.62,224.1733]
[1742051191198,0.02996466,135.65,135.62,216.8]
[1742051193091,6.90076466,135.67,135.62,216.8]
[1742051194302,20.0,135.65,135.62,80.7]
[1742051195309,7.3724,135.64,135.62,80.7]
[1742051195885,7.372,135.65,135.62,80.7]
[1742051198185,0.14216157,135.66,135.62,80.7]
[1742051198608,20.0,135.64,135.62,80.7]
[1742051199600,0.14216157,135.63,135.62,80.7]
[1742051199788,6.58216157,135.63,135.62,80.7]
[1742051200201,14.09732314,135.63,135.62,80.7]
[1742051200612,32.746972,135.63,135.62,43.3565]
[1742051201314,32.746972,135.63,135.57,43.3565]
[1742051201315,0.14216157,135.59,135.57,43.3565]
[1742051201492,20.14216157,135.59,135.57,43.3565]
[1742051202810,27.51776157,135.59,135.57,43.3565]
[1742051203909,27.3756,135.59,135.57,43.3565]
[1742051204289,20.0,135.59,135.57,43.3565]
[1742051204594,20.0,135.6,135.57,43.3565]
[1742051205194,0.03,135.67,135.61,43.3565]
[1742051205911,0.17216157,135.67,135.61,43.3565]
[1742051206608,20.0,135.66,135.61,43.3565]
[1742051207401,20.0,135.66,135.61,50.7303]
[1742051208016,20.0,135.64,135.61,43.3565]
[1742051208916,20.0,135.64,135.61,50.7305]
[1742051209995,33.99356157,135.66,135.61,43.3565]
[1742051210205,0.14216157,135.65,135.61,43.3565]
[1742051211517,0.14216157,135.65,135.61,43.4195]
[1742051212012,0.14216157,135.64,135.61,43.4195]
[1742051213337,0.03,135.67,135.64,43.3565]
[1742051213701,20.03,135.67,135.64,43.3565]
[1742051213909,0.03,135.67,135.64,43.3565]
[1742051214313,20.0,135.66,135.64,43.3565]
[1742051215217,20.0,135.66,135.62,1.5586]
[1742051215218,0.14216157,135.65,135.62,44.9151]
[1742051215423,0.14216157,135.65,135.62,43.3565]
[1742051221427,20.0,135.64,135.62,50.7297]
[1742051221627,6.55,135.67,135.62,50.7297]
[1742051223425,0.03,135.67,135.63,33.60566157]
[1742051223732,7.3648,135.78,135.71,40.8234046]
[1742051223923,7.3643,135.79,135.71,176.9234046]